bitfinex/quotes_SOLUSD_20260309
["timestamp","ask_amount","ask_price","bid_price","bid_amount"]
[1773018819191,12.1465098,82.18,82.152,1.18720365]
[1773018820495,12.1465098,82.16,82.13,1.28720365]
[1773018820700,12.1465098,82.15,82.13,1.28720365]
[1773018821100,12.1465098,82.15,82.13,13.46302149]
[1773018821294,12.1465098,82.17,82.131,1.18720365]
[1773018821501,0.28432314,82.169,82.131,1.18720365]
[1773018822110,12.1465098,82.16,82.131,1.18720365]
[1773018822315,12.1465098,82.15,82.131,1.18720365]
[1773018822497,12.1465098,82.15,82.131,12.17567057]
[1773018822928,12.1465098,82.14,82.13,0.1]
[1773018823212,0.28432314,82.138,82.1,12.18026043]
[1773018823418,12.1465098,82.13,82.1,12.18026043]
[1773018823591,12.1465098,82.12,82.09,1.18720365]
[1773018823797,12.1465098,82.12,82.093,12.18122026]
[1773018824619,12.1465098,82.11,82.09,1.18720365]
[1773018824804,12.1465098,82.11,82.089,1.18720365]
[1773018825400,12.1465098,82.11,82.09,12.18175173]
[1773018825618,12.1465098,82.11,82.083,12.18274864]
[1773018825812,12.1465098,82.11,82.083,13.36995229]
[1773018826022,24.3253128,82.11,82.083,13.36995229]
[1773018826809,12.1465098,82.11,82.084,1.18720365]
[1773018827329,12.1465098,82.12,82.084,1.18720365]
[1773018827628,12.1465098,82.12,82.086,1.18720365]
[1773018828616,12.1465098,82.14,82.086,1.18720365]
[1773018828807,12.1465098,82.13,82.086,1.18720365]
[1773018830404,12.1465098,82.13,82.058,3.69383402]
[1773018830405,12.1465098,82.11,82.076,1.18720365]
[1773018830603,12.1465098,82.1,82.045,4.82477569]
[1773018830806,42.9002079,82.129,82.06,1.18720365]
[1773018830807,12.1465098,82.09,82.06,1.18720365]
[1773018832635,12.18190013,82.089,82.061,12.18605671]
[1773018832808,12.1465098,82.08,82.061,12.18605671]
[1773018833124,12.1465098,82.07,82.051,1.18720365]
[1773018833333,12.1465098,82.08,82.051,1.18720365]
[1773018833703,12.2219533,82.08,82.051,1.18720365]
[1773018833926,12.2219533,82.08,82.051,13.37465096]
[1773018835206,12.2219533,82.07,82.048,12.18796623]
[1773018835920,12.2219533,82.07,82.042,1.18720365]
[1773018836528,12.2219533,82.07,82.045,12.18839071]
[1773018837021,12.2219533,82.07,82.051,1.18720365]
[1773018837231,12.2219533,82.08,82.051,1.18720365]
[1773018837442,12.2219533,82.1,82.052,1.18720365]
[1773018837736,0.28432314,82.099,82.052,1.18720365]
[1773018838426,0.28432314,82.097,82.054,1.18720365]
[1773018838612,12.2219533,82.09,82.054,1.18720365]
[1773018839118,0.28432314,82.097,82.054,1.18720365]
[1773018840634,0.28432314,82.097,82.056,1.18720365]
[1773018840812,12.2219533,82.09,82.056,1.18720365]
[1773018842514,0.28432314,82.099,82.058,1.18720365]
[1773018843105,11.96012546,82.12,82.058,1.18720365]
[1773018843106,12.2219533,82.11,82.058,1.18720365]
[1773018843613,0.28432314,82.119,82.058,1.18720365]
[1773018843915,12.2219533,82.13,82.064,1.18720365]
[1773018844226,0.28432314,82.129,82.064,1.18720365]
[1773018844426,12.2219533,82.12,82.064,1.47152679]
[1773018844825,12.2219533,82.14,82.075,1.18720365]
[1773018845024,12.2219533,82.14,82.083,1.18720365]
[1773018846627,12.2219533,82.15,82.085,1.47152679]
[1773018847032,0.28432314,82.149,82.085,1.47152679]
[1773018847221,12.2219533,82.15,82.093,1.18720365]
[1773018847522,12.2219533,82.15,82.093,1.47152679]
[1773018847831,12.2219533,82.14,82.093,1.18720365]
[1773018848020,0.28432314,82.149,82.093,1.18720365]
[1773018848626,0.28432314,82.147,82.095,1.18720365]
[1773018848831,12.2219533,82.14,82.095,1.18720365]
[1773018849123,0.28432314,82.147,82.095,1.18720365]
[1773018849631,12.2219533,82.16,82.095,1.47152679]
[1773018849834,0.28432314,82.159,82.095,1.47152679]
[1773018850816,0.28432314,82.169,82.104,1.18720365]
[1773018851017,12.2219533,82.17,82.096,103.53732215]
[1773018851018,12.2219533,82.17,82.106,1.18720365]
[1773018851216,60.82088443,82.209,82.096,103.53732215]
[1773018851217,12.2219533,82.19,82.128,1.18720365]
[1773018851427,12.2219533,82.26,82.136,1.32936522]
[1773018851428,12.2219533,82.2,82.136,1.32936522]
[1773018852234,0.28432314,82.199,82.136,1.32936522]
[1773018852434,12.2219533,82.18,82.136,1.18720365]
[1773018852734,0.28432314,82.189,82.136,1.18720365]
[1773018852916,0.28432314,82.189,82.138,1.18720365]
[1773018853228,12.2219533,82.19,82.138,1.18720365]
[1773018854422,0.28432314,82.204,82.138,1.18720365]
[1773018854423,0.28432314,82.199,82.138,1.18720365]
[1773018854630,0.28432314,82.189,82.138,1.18720365]
[1773018854813,24.39041693,82.18,82.14,1.18720365]
[1773018855022,12.2219533,82.18,82.14,1.18720365]
[1773018855326,0.28432314,82.189,82.14,1.18720365]
[1773018855831,12.16612562,82.196,82.14,1.18720365]
[1773018856535,12.2219533,82.19,82.14,1.18720365]
[1773018857035,12.16503555,82.203,82.144,1.18720365]
[1773018857334,12.2219533,82.2,82.144,1.18720365]
[1773018858431,12.2219533,82.2,82.146,1.47152679]
[1773018858825,12.16503555,82.203,82.146,1.47152679]
[1773018859245,12.2219533,82.21,82.149,4.82477569]
[1773018859532,12.16289564,82.218,82.154,1.18720365]
[1773018859723,0.28432314,82.217,82.154,1.18720365]
[1773018860229,12.2219533,82.21,82.154,1.18720365]
[1773018860431,0.2,82.22,82.157,1.18720365]
[1773018860628,12.2219533,82.24,82.18,4.82477569]
[1773018860826,12.2219533,82.24,82.183,1.18720365]
[1773018860827,12.15968092,82.239,82.183,1.18720365]
[1773018861027,12.2219533,82.24,82.183,1.18720365]
[1773018862136,0.28432314,82.239,82.183,1.18720365]
[1773018862631,12.2219533,82.23,82.185,1.18720365]
[1773018863135,12.2219533,82.24,82.185,1.18720365]
[1773018863640,0.28432314,82.239,82.185,1.18720365]
[1773018864041,12.2219533,82.23,82.185,1.18720365]
[1773018864621,12.44413775,82.239,82.187,1.18720365]
[1773018865539,12.15981461,82.239,82.187,1.18720365]
[1773018865719,0.28432314,82.249,82.187,1.18720365]
[1773018866026,165.6,82.29,82.187,1.18720365]
[1773018866027,12.2219533,82.26,82.192,1.18720365]
[1773018866342,12.2219533,82.28,82.213,1.47152679]
[1773018866524,12.2219533,82.28,82.221,1.18720365]
[1773018866720,12.2219533,82.29,82.226,1.02523945]
[1773018866921,6.32481865,82.326,82.226,1.02523945]
[1773018866922,12.15081592,82.299,82.226,1.02523945]
[1773018867124,12.2219533,82.28,82.226,1.02523945]
[1773018867757,0.28432314,82.289,82.226,1.02523945]
[1773018868443,12.2219533,82.29,82.226,1.02523945]
[1773018868630,0.28432314,82.288,82.228,1.02523945]
[1773018869223,0.28432314,82.279,82.227,42.56509418]
[1773018869538,42.53302384,82.289,82.227,42.56509418]
[1773018869539,0.28432314,82.269,82.228,1.02523945]
[1773018869945,12.2219533,82.28,82.228,1.02523945]
[1773018870334,42.53302384,82.289,82.228,1.02523945]
[1773018870335,0.28432314,82.288,82.228,1.02523945]
[1773018870943,0.28432314,82.286,82.23,1.02523945]
[1773018871533,0.28432314,82.269,82.23,1.02523945]
[1773018872538,0.28432314,82.269,82.229,42.5640589]
[1773018872539,12.2219533,82.26,82.224,13.18705726]
[1773018872841,12.2219533,82.26,82.225,1.02523945]
[1773018873429,0.28432314,82.269,82.227,1.02523945]
[1773018873430,0.28432314,82.263,82.227,1.02523945]
[1773018873746,12.2219533,82.26,82.227,1.02523945]
[1773018874241,0.28432314,82.298,82.227,1.02523945]
[1773018874454,12.2219533,82.27,82.227,1.02523945]
[1773018876222,12.15524681,82.269,82.228,12.16130758]
[1773018876441,12.15524681,82.269,82.204,0.28432314]
[1773018876442,12.2219533,82.24,82.204,1.02523945]
[1773018876646,12.2219533,82.26,82.204,1.02523945]
[1773018878743,12.15672449,82.259,82.206,1.02523945]
[1773018878940,12.2219533,82.26,82.206,1.02523945]
[1773018879733,0.28432314,82.269,82.206,1.02523945]
[1773018880625,0.28432314,82.267,82.208,1.02523945]
[1773018881850,12.2219533,82.28,82.21,1.02523945]
[1773018882154,12.35073893,82.3,82.231,1.02523945]
[1773018882450,0.28432314,82.299,82.236,1.02523945]
[1773018882761,12.15096357,82.298,82.238,1.02523945]
[1773018883235,12.2219533,82.29,82.238,1.02523945]
[1773018883655,0.28432314,82.289,82.238,1.02523945]
[1773018885158,0.28432314,82.287,82.24,1.02523945]
[1773018885367,12.2219533,82.28,82.24,1.02523945]
[1773018885538,0.28432314,82.287,82.24,1.02523945]
[1773018886840,0.28432314,82.279,82.239,12.15968092]
[1773018887041,0.28432314,82.269,82.239,12.15968092]
[1773018887534,0.28432314,82.267,82.232,1.02523945]
[1773018887754,12.2219533,82.24,82.197,1.02523945]
[1773018888062,12.2219533,82.23,82.197,1.02523945]
[1773018888248,0.28432314,82.239,82.197,1.02523945]
[1773018889147,0.28432314,82.249,82.197,1.02523945]
[1773018889549,0.28432314,82.247,82.198,42.58011143]
[1773018889858,0.28432314,82.247,82.199,1.02523945]
[1773018891062,12.2219533,82.24,82.199,1.02523945]
[1773018892358,12.44400406,82.239,82.2,12.16545012]
[1773018892565,12.44400406,82.239,82.201,1.02523945]
[1773018892764,42.84320638,82.239,82.201,1.02523945]
[1773018893082,12.44400406,82.239,82.201,1.02523945]
[1773018894253,12.44400406,82.239,82.202,12.16515413]
[1773018894455,12.44400406,82.239,82.203,1.02523945]
[1773018895459,12.44400406,82.239,82.204,12.16485815]
[1773018895651,12.44400406,82.239,82.205,1.02523945]
[1773018897571,12.1742454,82.25,82.207,1.02523945]
[1773018898167,12.15820253,82.249,82.207,1.02523945]
[1773018898362,12.1742454,82.24,82.207,1.02523945]
[1773018898555,0.28432314,82.248,82.207,1.02523945]
[1773018898956,12.1742454,82.24,82.207,1.02523945]
[1773018899360,12.1742454,82.24,82.206,12.16456219]
[1773018899556,12.1742454,82.24,82.205,30.41143921]
[1773018899877,12.1742454,82.26,82.206,1.02523945]
[1773018900081,0.28432314,82.269,82.206,1.02523945]
[1773018900271,12.1742454,82.27,82.206,1.02523945]
[1773018900474,12.1742454,82.28,82.222,1.02523945]
[1773018900662,0.28432314,82.289,82.222,1.02523945]
[1773018901061,12.1742454,82.29,82.222,1.02523945]
[1773018901462,0.28432314,82.289,82.222,1.02523945]
[1773018901879,0.28432314,82.289,82.224,1.02523945]
[1773018901880,12.1742454,82.27,82.224,1.02523945]
[1773018902779,12.1742454,82.28,82.224,1.02523945]
[1773018903681,0.14216157,82.287,82.224,1.02523945]
[1773018903884,0.28432314,82.285,82.226,1.02523945]
[1773018904794,12.1742454,82.27,82.226,1.02523945]
[1773018906080,12.1742454,82.27,82.228,1.02523945]
[1773018906788,0.28432314,82.289,82.228,1.02523945]
[1773018907883,12.1742454,82.28,82.23,1.02523945]
[1773018908070,12.1742454,82.27,82.23,1.02523945]
[1773018908381,0.28432314,82.279,82.23,1.02523945]
[1773018909685,0.28432314,82.269,82.229,12.16115968]
[1773018909985,12.43809263,82.279,82.232,1.02523945]
[1773018912374,12.43809263,82.279,82.234,1.02523945]
[1773018912785,12.1742454,82.29,82.234,1.02523945]
[1773018912969,12.1742454,82.28,82.234,1.02523945]
[1773018913377,12.1742454,82.27,82.234,1.02523945]
[1773018913578,12.1742454,82.26,82.233,12.16056814]
[1773018914671,12.15672449,82.259,82.227,12.16145548]
[1773018917287,12.1742454,82.25,82.218,1.02523945]
[1773018918493,3.69383402,82.28,82.22,1.02523945]
[1773018918692,0.28432314,82.269,82.22,1.02523945]
[1773018918991,12.1742454,82.26,82.22,1.02523945]
[1773018919577,46.23151023,82.28,82.202,1.02523945]
[1773018919578,0.28432314,82.239,82.202,1.02523945]
[1773018919771,12.1742454,82.23,82.182,1.02523945]
[1773018919971,12.1742454,82.22,82.187,1.02523945]
[1773018920381,0.28432314,82.229,82.187,1.02523945]
[1773018920800,12.1742454,82.22,82.189,1.02523945]
[1773018921789,12.16130758,82.228,82.189,1.02523945]
[1773018921790,0.28432314,82.227,82.189,1.02523945]
[1773018922176,12.16130758,82.228,82.189,1.02523945]
[1773018922378,0.28432314,82.227,82.189,1.02523945]
[1773018923401,12.1742454,82.22,82.19,12.16693028]
[1773018923581,12.1742454,82.22,82.191,1.02523945]
[1773018924380,12.1626388,82.219,82.184,1.02523945]
[1773018925481,0.28432314,82.229,82.184,1.02523945]
[1773018925675,12.1742454,82.23,82.184,1.02523945]
[1773018925877,0.28432314,82.229,82.184,1.02523945]
[1773018926485,0.28432314,82.227,82.186,1.02523945]
[1773018928792,12.1742454,82.24,82.188,1.02523945]
[1773018929192,0.28432314,82.239,82.188,1.02523945]
[1773018929593,0.14216157,82.239,82.188,1.02523945]
[1773018929798,0.28432314,82.239,82.188,1.02523945]
[1773018930306,12.1742454,82.25,82.192,1.02523945]
[1773018930494,12.15747038,82.254,82.192,1.02523945]
[1773018930695,12.1742454,82.25,82.192,1.02523945]
[1773018930902,12.15820253,82.249,82.194,1.02523945]
[1773018931283,12.1742454,82.25,82.194,1.02523945]
[1773018931706,12.15820253,82.249,82.194,1.02523945]
[1773018931906,12.15764749,82.253,82.194,1.02523945]
[1773018932387,12.1742454,82.25,82.194,1.02523945]
[1773018934208,12.1742454,82.25,82.196,1.02523945]
[1773018935103,12.15820253,82.249,82.196,1.02523945]
[1773018936502,12.15820253,82.249,82.198,1.02523945]
[1773018937306,12.15820253,82.249,82.199,42.57959342]
[1773018937610,12.15820253,82.249,82.2,1.02523945]
[1773018938708,60.75901239,82.293,82.202,1.02523945]
[1773018939008,0.28432314,82.269,82.205,1.02523945]
[1773018939210,12.1742454,82.25,82.205,1.02523945]
[1773018939909,12.15820253,82.249,82.207,1.02523945]
[1773018940810,12.1742454,82.24,82.207,1.02523945]
[1773018941715,4.54439853,82.24,82.207,1.02523945]
[1773018942213,4.54439853,82.27,82.209,1.02523945]
[1773018942406,4.54439853,82.27,82.208,42.57493187]
[1773018942407,4.54439853,82.28,82.213,1.02523945]
[1773018942596,0.28432314,82.279,82.213,1.02523945]
[1773018943293,4.54439853,82.28,82.223,1.02523945]
[1773018944019,4.54439853,82.27,82.223,1.02523945]
[1773018944236,12.15524681,82.269,82.224,42.5666472]
[1773018944513,12.15524681,82.269,82.225,1.02523945]
[1773018945312,4.54439853,82.26,82.225,1.02523945]
[1773018945504,0.28432314,82.268,82.225,1.02523945]
[1773018945896,4.54439853,82.26,82.225,1.02523945]
[1773018946509,4.54439853,82.26,82.227,1.02523945]
[1773018946707,0.28432314,82.239,82.203,1.02523945]
[1773018947015,4.54439853,82.23,82.203,1.02523945]
[1773018947513,0.28432314,82.229,82.181,1.02523945]
[1773018947708,4.54439853,82.23,82.181,1.02523945]
[1773018948494,0.28432314,82.239,82.183,1.02523945]
[1773018948699,4.54439853,82.23,82.183,1.02523945]
[1773018950195,0.14216157,82.229,82.183,1.02523945]
[1773018950395,12.1626388,82.219,82.184,13.193058]
[1773018950601,12.1626388,82.219,82.185,1.02523945]
[1773018950802,0.28432314,82.224,82.185,1.02523945]
[1773018951512,12.44400406,82.239,82.185,1.02523945]
[1773018951908,4.54439853,82.23,82.185,1.02523945]
[1773018952619,16.70547797,82.23,82.187,1.02523945]
[1773018952816,0.28432314,82.229,82.187,1.02523945]
[1773018953017,4.54439853,82.22,82.181,1.02523945]
[1773018953310,0.14216157,82.219,82.181,1.02523945]
[1773018954900,0.14216157,82.219,82.183,1.02523945]
[1773018955415,0.14216157,82.229,82.183,1.02523945]
[1773018955722,0.28432314,82.229,82.183,1.02523945]
[1773018955916,34.94692802,82.23,82.183,1.02523945]
[1773018955917,0.28432314,82.219,82.183,1.02523945]
[1773018956117,4.54439853,82.23,82.183,1.02523945]
[1773018956310,0.28432314,82.229,82.183,1.02523945]
[1773018956509,4.54439853,82.23,82.183,1.02523945]
[1773018956706,1.22997707,82.23,82.183,1.02523945]
[1773018957113,1.22997707,82.23,82.185,1.02523945]
[1773018957326,0.14216157,82.237,82.185,1.02523945]
[1773018958719,30.39475362,82.252,82.185,1.02523945]
[1773018958720,12.15830642,82.249,82.185,1.02523945]
[1773018958917,30.39085462,82.262,82.191,103.41764912]
[1773018958918,4.54516902,82.26,82.191,103.41764912]
[1773018959116,12.29888606,82.259,82.194,1.02523945]
[1773018959420,4.54516902,82.25,82.194,1.02523945]
[1773018959808,4.54516902,82.24,82.194,1.02523945]
[1773018960331,0.28432314,82.251,82.191,13.1920217]
[1773018960332,4.54516902,82.23,82.191,13.1920217]
[1773018960620,4.54516902,82.23,82.192,1.02523945]
[1773018960804,0.28432314,82.229,82.192,1.02523945]
[1773018961210,0.28432314,82.227,82.194,1.02523945]
[1773018962008,4.54516902,82.22,82.193,12.16648619]
[1773018963237,12.16278673,82.218,82.171,1.02523945]
[1773018963426,0.28432314,82.217,82.171,1.02523945]
[1773018963627,3.69383402,82.277,82.173,1.02523945]
[1773018963923,0.28432314,82.239,82.174,1.02523945]
[1773018964325,12.44400406,82.239,82.174,1.02523945]
[1773018965516,4.54516902,82.25,82.178,1.02523945]
[1773018965721,4.54516902,82.25,82.176,0.28432314]
[1773018965722,0.28432314,82.249,82.183,1.02523945]
[1773018966227,4.54516902,82.26,82.188,1.02523945]
[1773018966415,0.28432314,82.272,82.192,1.02523945]
[1773018966619,4.54516902,82.26,82.192,1.02523945]
[1773018966820,0.28432314,82.259,82.192,1.02523945]
[1773018968027,60.7725552,82.274,82.197,1.02523945]
[1773018968028,4.54516902,82.25,82.197,1.02523945]
[1773018968229,0.28432314,82.249,82.197,1.02523945]
[1773018968437,4.54516902,82.24,82.197,1.02523945]
[1773018969015,0.28432314,82.251,82.197,1.02523945]
[1773018969216,4.54516902,82.24,82.197,1.02523945]
[1773018970530,12.44400406,82.239,82.199,1.02523945]
[1773018970713,0.28432314,82.239,82.199,1.02523945]
[1773018970919,4.54516902,82.25,82.199,1.02523945]
[1773018971119,0.28432314,82.249,82.199,1.02523945]
[1773018973241,0.28432314,82.247,82.201,1.02523945]
[1773018976029,0.28432314,82.245,82.203,1.02523945]
[1773018977131,4.54516902,82.24,82.203,1.02523945]
[1773018977437,0.28432314,82.245,82.203,1.02523945]
[1773018979632,0.28432314,82.243,82.205,1.02523945]
[1773018982744,263.99906767,82.526,82.205,1.02523945]
[1773018982943,263.99906767,82.526,82.175,0.28432314]
[1773018982944,0.14216157,82.269,82.207,1.02523945]
[1773018983172,30.38442372,82.279,82.207,1.02523945]
[1773018983349,12.15258789,82.287,82.216,1.02523945]
[1773018983853,42.53405762,82.287,82.216,1.02523945]
[1773018984046,0.28432314,82.286,82.216,1.02523945]
[1773018985146,12.15125887,82.296,82.229,3.69383402]
[1773018985337,0.2,82.3,82.242,1.02523945]
[1773018986634,1e-08,82.3,82.253,1.02523945]
[1773018987237,1e-08,82.3,82.26,4.82477569]
[1773018987439,12.1449131,82.339,82.267,0.28432314]
[1773018987650,4.74516902,82.37,82.28,4.82477569]
[1773018987965,0.28432314,82.355,82.295,1.02523945]
[1773018988137,12.14304794,82.352,82.295,1.02523945]
[1773018988337,12.14280061,82.354,82.295,1.02523945]
[1773018988752,12.42639099,82.359,82.295,1.02523945]
[1773018988949,0.28432314,82.354,82.295,1.02523945]
[1773018989357,12.14321578,82.351,82.297,1.02523945]
[1773018989862,0.28432314,82.355,82.297,1.02523945]
[1773018991065,12.14343829,82.349,82.297,1.02523945]
[1773018991243,0.28432314,82.355,82.299,1.02523945]
[1773018991244,0.28432314,82.353,82.299,1.02523945]
[1773018992344,12.14343829,82.349,82.299,1.02523945]
[1773018992536,0.28432314,82.348,82.299,1.02523945]
[1773018994147,12.14277489,82.354,82.301,1.02523945]
[1773018994347,0.28432314,82.353,82.301,1.02523945]
[1773018995460,12.14277489,82.354,82.301,1.02523945]
[1773018995762,0.28432314,82.353,82.301,1.02523945]
[1773018996959,0.28432314,82.353,82.303,1.02523945]
[1773018997352,12.42723134,82.353,82.303,1.02523945]
[1773018998257,12.14343829,82.349,82.303,1.02523945]
[1773018998667,0.28432314,82.339,82.295,1.02523945]
[1773018998872,4.54516902,82.36,82.297,1.02523945]
[1773018999046,4.74516902,82.37,82.304,1.02523945]
[1773018999248,0.28432314,82.369,82.306,1.02523945]
[1773018999460,4.74516902,82.37,82.306,1.02523945]
[1773018999662,0.2,82.37,82.306,1.02523945]
[1773018999867,12.14139924,82.363,82.306,1.02523945]
[1773019000462,0.2,82.37,82.316,1.02523945]
[1773019000857,0.2,82.37,82.318,1.02523945]
[1773019001560,12.14048974,82.369,82.318,1.02523945]
[1773019002360,0.2,82.37,82.318,1.02523945]
[1773019002962,0.2,82.37,82.32,1.02523945]
[1773019003356,12.34040318,82.37,82.32,1.02523945]
[1773019003759,0.2,82.37,82.32,1.02523945]
[1773019004473,12.14048974,82.369,82.32,1.02523945]
[1773019004970,0.2,82.37,82.322,1.02523945]
[1773019005171,0.28432314,82.369,82.322,1.02523945]
[1773019006872,0.2,82.37,82.322,1.02523945]
[1773019007475,0.2,82.37,82.324,1.02523945]
[1773019007983,0.28432314,82.368,82.323,42.5154574]
[1773019008160,0.28432314,82.368,82.324,1.02523945]
[1773019008762,4.54516902,82.36,82.324,1.02523945]
[1773019009175,0.28432314,82.368,82.324,1.02523945]
[1773019009360,4.54516902,82.36,82.325,12.14697843]
[1773019009763,0.28432314,82.359,82.3,1.02523945]
[1773019010386,4.54516902,82.35,82.3,1.02523945]
[1773019010675,0.28432314,82.359,82.3,1.02523945]
[1773019011878,4.54516902,82.34,82.301,12.15052064]
[1773019012180,4.54516902,82.34,82.301,13.17576009]
[1773019012374,0.28432314,82.349,82.302,1.02523945]
[1773019012556,0.28432314,82.357,82.302,1.02523945]
[1773019015378,0.28432314,82.357,82.301,103.2794255]
[1773019015379,0.28432314,82.355,82.304,1.02523945]
[1773019015583,0.28432314,82.349,82.304,1.02523945]
[1773019015772,4.54516902,82.33,82.299,12.15078006]
[1773019016173,0.28432314,82.329,82.295,1.02523945]
[1773019016569,4.54516902,82.32,82.287,1.02523945]
[1773019017065,4.54516902,82.32,82.273,30.38642131]
[1773019017066,0.28432314,82.319,82.273,30.38642131]
[1773019017258,3.69383402,82.353,82.27,1.02523945]
[1773019017259,0.28432314,82.309,82.27,1.02523945]
[1773019017463,12.15081592,82.299,82.263,42.54646681]
[1773019017672,12.15081592,82.299,82.264,1.02523945]
[1773019018072,12.15023628,82.303,82.264,1.02523945]
[1773019018277,4.53756442,82.31,82.264,1.02523945]
[1773019018472,0.28432314,82.316,82.264,1.02523945]
[1773019019683,0.28432314,82.314,82.266,1.02523945]
[1773019020383,4.53756442,82.31,82.266,1.02523945]
[1773019020891,4.53756442,82.3,82.266,1.02523945]
[1773019021185,0.28432314,82.309,82.266,1.02523945]
[1773019021785,4.53756442,82.31,82.268,1.02523945]
[1773019021786,0.28432314,82.307,82.268,1.02523945]
[1773019023671,0.28432314,82.307,82.27,1.02523945]
[1773019025987,0.28432314,82.307,82.272,1.02523945]
[1773019026288,12.14978251,82.306,82.272,1.02523945]
[1773019026489,0.28432314,82.305,82.272,1.02523945]
[1773019026886,12.14978251,82.306,82.272,1.02523945]
[1773019026887,12.15313885,82.31,82.272,1.02523945]
[1773019027076,0.28432314,82.319,82.272,1.02523945]
[1773019027483,12.15313885,82.34,82.275,1.02523945]
[1773019027785,12.15313885,82.35,82.286,1.02523945]
[1773019027976,0.28432314,82.349,82.286,1.02523945]
[1773019028175,0.28432314,82.347,82.288,1.02523945]
[1773019028693,12.14358575,82.348,82.288,1.02523945]
[1773019028892,12.15313885,82.35,82.288,1.02523945]
[1773019028893,12.35313885,82.37,82.303,1.02523945]
[1773019029093,0.2,82.37,82.31,4.82477569]
[1773019029272,0.2,82.37,82.316,1.02523945]
[1773019030478,0.2,82.37,82.318,1.02523945]
[1773019030877,54.84443689,82.37,82.318,1.02523945]
[1773019031190,0.28432314,82.369,82.318,1.02523945]
[1773019032090,0.28432314,82.359,82.309,1.02523945]
[1773019032293,12.15313885,82.35,82.309,1.02523945]
[1773019032496,12.15313885,82.34,82.301,1.02523945]
[1773019032684,0.28432314,82.309,82.273,1.02523945]
[1773019032874,12.15313885,82.3,82.259,1.02523945]
[1773019033083,12.15313885,82.29,82.259,1.02523945]
[1773019033591,0.28432314,82.299,82.259,1.02523945]
[1773019033784,12.15313885,82.28,82.212,1.02523945]
[1773019033986,12.15313885,82.28,82.214,3.69383402]
[1773019034183,12.15313885,82.28,82.225,1.02523945]
[1773019034379,0.28432314,82.279,82.225,1.02523945]
[1773019034583,12.15313885,82.27,82.227,1.02523945]
[1773019034883,0.28432314,82.289,82.227,1.02523945]
[1773019035085,12.15313885,82.29,82.233,1.30956259]
[1773019035296,12.15313885,82.29,82.234,1.02523945]
[1773019035496,0.28432314,82.299,82.234,1.02523945]
[1773019035710,0.28432314,82.299,82.236,1.02523945]
[1773019037386,0.28432314,82.297,82.238,1.02523945]
[1773019039493,0.28432314,82.295,82.24,1.02523945]
[1773019039884,12.15313885,82.29,82.24,1.02523945]
[1773019040202,0.28432314,82.295,82.24,1.02523945]
[1773019040388,48.56328672,82.367,82.24,1.02523945]
[1773019040389,12.90707976,82.318,82.241,1.02523945]
[1773019040595,12.90707976,82.318,82.245,1.02523945]
[1773019041389,12.90707976,82.318,82.248,4.82477569]
[1773019041589,12.15313885,82.32,82.263,1.02523945]
[1773019042201,12.15313885,82.31,82.263,1.02523945]
[1773019042399,0.28432314,82.319,82.263,1.02523945]
[1773019044696,12.14801137,82.318,82.265,1.02523945]
[1773019045095,12.15313885,82.34,82.265,1.16740102]
[1773019045404,12.15313885,82.34,82.273,1.02523945]
[1773019045597,0.14216157,82.339,82.273,1.02523945]
[1773019045798,12.15313885,82.34,82.273,1.02523945]
[1773019046107,0.14216157,82.339,82.273,1.02523945]
[1773019046289,12.15313885,82.34,82.273,1.02523945]
[1773019046806,0.14216157,82.339,82.276,1.16740102]
[1773019046987,60.6811208,82.398,82.274,57.04606912]
[1773019046988,12.15313885,82.36,82.284,1.02523945]
[1773019047189,12.15313885,82.36,82.286,1.02523945]
[1773019047404,12.15313885,82.36,82.293,1.02523945]
[1773019047607,12.14214332,82.358,82.293,1.02523945]
[1773019048109,12.14240613,82.356,82.293,1.02523945]
[1773019051412,1e-08,82.357,82.294,4.82477569]
[1773019051615,1e-08,82.357,82.307,1.02523945]
[1773019051816,1e-08,82.357,82.296,1.02523945]
[1773019051817,12.15313885,82.34,82.296,1.02523945]
[1773019052519,42.49798916,82.357,82.296,1.02523945]
[1773019052520,0.28432314,82.349,82.296,1.02523945]
[1773019053392,0.28432314,82.349,82.278,3.69383402]
[1773019053393,7.42235257,82.393,82.3,103.28068042]
[1773019053710,12.15313885,82.39,82.326,1.02523945]
[1773019053915,0.14216157,82.369,82.326,1.02523945]
[1773019054211,0.28432314,82.369,82.326,1.02523945]
[1773019055602,0.28432314,82.369,82.328,1.02523945]
[1773019056206,12.14063714,82.368,82.328,1.02523945]
[1773019057622,12.14063714,82.368,82.33,1.02523945]
[1773019057917,0.28432314,82.369,82.33,1.02523945]
[1773019058096,12.14063714,82.368,82.33,1.02523945]
[1773019059725,0.28432314,82.369,82.33,1.02523945]
[1773019059915,12.14063714,82.368,82.331,42.51132622]
[1773019060221,12.14063714,82.368,82.331,43.53656567]
[1773019060715,12.15313885,82.37,82.331,43.53656567]
[1773019060716,0.2,82.42,82.336,0.92523945]
[1773019060917,0.2,82.5,82.331,297.57928358]
[1773019060918,0.60602574,82.513,82.46,4.78e-06]
[1773019061122,9.85897486,82.6,82.46,4.78e-06]
[1773019061123,12.15313885,82.55,82.46,4.78e-06]
[1773019061300,12.15313885,82.53,82.465,0.5766507]
[1773019061500,12.15313885,82.56,82.46,4.78e-06]
[1773019061701,12.15313885,82.54,82.467,0.5766507]